[Event "*** Titled Tuesday Blitz"]
[Site "Chess.com"]
[Date "2021.02.02"]
[Round "4"]
[White "hermionegrangermagic"]
[Black "KuzubovYuriy"]
[Result "0-1"]
[WhiteElo "2644"]
[BlackElo "2843"]
[TimeControl "180+1"]
[EndTime "10:41:37 PST"]
[Termination "KuzubovYuriy won by checkmate"]

1. e4 {[%clk 0:03:00.9]} 1... c5 {[%clk 0:02:59.5]} 2. Nf3 {[%clk 0:03:00.4]}
2... Nc6 {[%clk 0:02:59.5]} 3. d4 {[%clk 0:02:59.7]} 3... cxd4 {[%clk
0:03:00.4]} 4. Nxd4 {[%clk 0:02:58.3]} 4... Nf6 {[%clk 0:03:00.8]} 5. Nc3 {[%clk
0:02:58]} 5... e5 {[%clk 0:03:01.4]} 6. Ndb5 {[%clk 0:02:57.6]} 6... d6 {[%clk
0:03:01]} 7. Bg5 {[%clk 0:02:57.3]} 7... a6 {[%clk 0:03:01.2]} 8. Na3 {[%clk
0:02:57.2]} 8... b5 {[%clk 0:03:01.5]} 9. Bxf6 {[%clk 0:02:56.9]} 9... gxf6
{[%clk 0:03:01.6]} 10. Nd5 {[%clk 0:02:56.5]} 10... f5 {[%clk 0:03:02]} 11. c3
{[%clk 0:02:54.2]} 11... Bg7 {[%clk 0:02:55.1]} 12. Bd3 {[%clk 0:02:47.6]} 12...
Be6 {[%clk 0:02:51.7]} 13. Nxb5 {[%clk 0:02:47.2]} 13... axb5 {[%clk 0:02:45.4]}
14. Bxb5 {[%clk 0:02:47]} 14... Bd7 {[%clk 0:02:45.1]} 15. exf5 {[%clk
0:02:47.1]} 15... O-O {[%clk 0:02:29.7]} 16. Qg4 {[%clk 0:02:43.7]} 16... Kh8
{[%clk 0:02:22.1]} 17. O-O {[%clk 0:02:20.8]} 17... Rb8 {[%clk 0:02:15.5]} 18.
a4 {[%clk 0:02:20.4]} 18... Rg8 {[%clk 0:02:05.1]} 19. Qe4 {[%clk 0:02:20.1]}
19... Qg5 {[%clk 0:01:39.6]} 20. f6 {[%clk 0:01:45.6]} 20... Bh6 {[%clk
0:01:10.8]} 21. h4 {[%clk 0:01:44.2]} 21... Qh5 {[%clk 0:00:59]} 22. Ne7 {[%clk
0:01:12.3]} 22... Nxe7 {[%clk 0:00:38.3]} 23. fxe7 {[%clk 0:01:09.3]} 23... Bf5
{[%clk 0:00:37.9]} 24. Qd5 {[%clk 0:00:49.2]} 24... e4 {[%clk 0:00:32.6]} 25.
e8=Q {[%clk 0:00:38.1]} 25... Rbxe8 {[%clk 0:00:30.3]} 26. Bxe8 {[%clk 0:00:23]}
26... Rxg2+ {[%clk 0:00:17.5]} 27. Kxg2 {[%clk 0:00:23.9]} 27... Bh3+ {[%clk
0:00:12.4]} 28. Kxh3 {[%clk 0:00:06.8]} 28... Qf3+ {[%clk 0:00:11.7]} 29. Kh2
{[%clk 0:00:06.5]} 29... Bf4+ {[%clk 0:00:12.4]} 30. Kg1 {[%clk 0:00:06.4]}
30... Qg4+ {[%clk 0:00:12.6]} 31. Kh1 {[%clk 0:00:06.6]} 31... Qh3+ {[%clk
0:00:12.2]} 32. Kg1 {[%clk 0:00:07]} 32... Qh2# {[%clk 0:00:12.6]} 0-1

[Event "*** Titled Tuesday Blitz"]
[Site "Chess.com"]
[Date "2021.02.02"]
[Round "4"]
[White "SaraciNderim"]
[Black "wonderfultime"]
[Result "0-1"]
[WhiteElo "2819"]
[BlackElo "3017"]
[TimeControl "180+1"]
[EndTime "10:41:38 PST"]
[Termination "wonderfultime won by checkmate"]

1. d4 {[%clk 0:02:59.7]} 1... d5 {[%clk 0:02:55]} 2. Nf3 {[%clk 0:02:58.7]} 2...
Nf6 {[%clk 0:02:55.1]} 3. Bf4 {[%clk 0:02:58.6]} 3... Bf5 {[%clk 0:02:55.4]} 4.
e3 {[%clk 0:02:58.7]} 4... e6 {[%clk 0:02:55.8]} 5. c4 {[%clk 0:02:58.9]} 5...
Bxb1 {[%clk 0:02:56.7]} 6. Qxb1 {[%clk 0:02:58]} 6... Bb4+ {[%clk 0:02:57.2]} 7.
Kd1 {[%clk 0:02:58.4]} 7... Bd6 {[%clk 0:02:58.1]} 8. Bg3 {[%clk 0:02:44.7]}
8... c5 {[%clk 0:02:57.1]} 9. cxd5 {[%clk 0:02:42.1]} 9... Nxd5 {[%clk
0:02:54.1]} 10. Bc4 {[%clk 0:02:25]} 10... Nc6 {[%clk 0:02:28.4]} 11. Ke2 {[%clk
0:02:07.8]} 11... cxd4 {[%clk 0:02:22.6]} 12. Bxd5 {[%clk 0:02:07.4]} 12... exd5
{[%clk 0:02:21.6]} 13. Nxd4 {[%clk 0:01:10.5]} 13... Nxd4+ {[%clk 0:01:49.8]}
14. exd4 {[%clk 0:01:11.4]} 14... O-O {[%clk 0:01:50.7]} 15. Rd1 {[%clk
0:01:06.7]} 15... Qb6 {[%clk 0:01:35.5]} 16. Kf1 {[%clk 0:01:02.5]} 16... Rfe8
{[%clk 0:01:32.5]} 17. Qd3 {[%clk 0:00:59.5]} 17... Bxg3 {[%clk 0:01:23.3]} 18.
hxg3 {[%clk 0:00:57]} 18... Re4 {[%clk 0:01:23.6]} 19. b3 {[%clk 0:00:50.2]}
19... Rae8 {[%clk 0:01:21.5]} 20. Rac1 {[%clk 0:00:47]} 20... h5 {[%clk
0:01:09.6]} 21. Rc5 {[%clk 0:00:39.3]} 21... Qe6 {[%clk 0:00:59.7]} 22. Rcc1
{[%clk 0:00:38.4]} 22... h4 {[%clk 0:00:56.8]} 23. gxh4 {[%clk 0:00:29.9]} 23...
Rxh4 {[%clk 0:00:55.5]} 24. f3 {[%clk 0:00:14]} 24... Qh6 {[%clk 0:00:42.8]} 25.
Kf2 {[%clk 0:00:07.8]} 25... Rh2 {[%clk 0:00:42.8]} 26. f4 {[%clk 0:00:05.6]}
26... Qh4+ {[%clk 0:00:41.2]} 27. Kf3 {[%clk 0:00:02.6]} 27... Re4 {[%clk
0:00:35.7]} 28. Rc8+ {[%clk 0:00:01.9]} 28... Kh7 {[%clk 0:00:36.1]} 29. Qd2
{[%clk 0:00:02.3]} 29... f5 {[%clk 0:00:28.8]} 30. Rc5 {[%clk 0:00:02.1]} 30...
Qg4+ {[%clk 0:00:29.1]} 31. Kf2 {[%clk 0:00:01.4]} 31... Qxg2# {[%clk
0:00:29.3]} 0-1

[Event "*** Titled Tuesday Blitz"]
[Site "Chess.com"]
[Date "2021.02.02"]
[Round "4"]
[White "Mimsychess"]
[Black "salomez"]
[Result "1/2-1/2"]
[WhiteElo "2357"]
[BlackElo "2216"]
[TimeControl "180+1"]
[EndTime "10:41:39 PST"]
[Termination "Game drawn by repetition"]

1. d4 {[%clk 0:02:45.2]} 1... Nf6 {[%clk 0:02:59.6]} 2. c4 {[%clk 0:02:41.1]}
2... g6 {[%clk 0:03:00.5]} 3. f3 {[%clk 0:02:40.3]} 3... d5 {[%clk 0:02:46.9]}
4. cxd5 {[%clk 0:02:39.5]} 4... Nxd5 {[%clk 0:02:47.8]} 5. e4 {[%clk 0:02:39.6]}
5... Nb6 {[%clk 0:02:47.6]} 6. Nc3 {[%clk 0:02:40.2]} 6... Bg7 {[%clk
0:02:47.4]} 7. Be3 {[%clk 0:02:40.9]} 7... O-O {[%clk 0:02:47.6]} 8. Qd2 {[%clk
0:02:41.3]} 8... Nc6 {[%clk 0:02:42.4]} 9. O-O-O {[%clk 0:02:40.4]} 9... f5
{[%clk 0:02:42.2]} 10. e5 {[%clk 0:02:26.6]} 10... Be6 {[%clk 0:02:41.1]} 11.
Nh3 {[%clk 0:02:24.1]} 11... Nc4 {[%clk 0:01:57.5]} 12. Bxc4 {[%clk 0:02:18.9]}
12... Bxc4 {[%clk 0:01:58.4]} 13. b3 {[%clk 0:02:15.2]} 13... Bd5 {[%clk
0:01:13.8]} 14. Nf4 {[%clk 0:02:03.2]} 14... e6 {[%clk 0:01:13.7]} 15. Ncxd5
{[%clk 0:01:59.8]} 15... exd5 {[%clk 0:01:14.6]} 16. Ne6 {[%clk 0:02:00.1]}
16... Qd7 {[%clk 0:01:02.7]} 17. Nxf8 {[%clk 0:01:59.7]} 17... Bxf8 {[%clk
0:01:03.1]} 18. Kb1 {[%clk 0:01:57.8]} 18... a5 {[%clk 0:01:02.6]} 19. a4 {[%clk
0:01:48.4]} 19... b5 {[%clk 0:00:59.9]} 20. axb5 {[%clk 0:01:38.9]} 20... Nb4
{[%clk 0:00:58.5]} 21. Bh6 {[%clk 0:01:05.6]} 21... Bxh6 {[%clk 0:00:37.6]} 22.
Qxh6 {[%clk 0:01:06.5]} 22... Qxb5 {[%clk 0:00:37.9]} 23. Qg5 {[%clk 0:00:39.4]}
23... a4 {[%clk 0:00:34.3]} 24. Qe7 {[%clk 0:00:37.8]} 24... Nd3 {[%clk
0:00:04.3]} 25. Qe6+ {[%clk 0:00:33.9]} 25... Kg7 {[%clk 0:00:03.1]} 26. Qf6+
{[%clk 0:00:32.9]} 26... Kh6 {[%clk 0:00:01.7]} 27. Qh4+ {[%clk 0:00:17.9]}
27... Kg7 {[%clk 0:00:02.6]} 28. Qf6+ {[%clk 0:00:09.3]} 28... Kh6 {[%clk
0:00:03.5]} 29. Qh4+ {[%clk 0:00:07.6]} 29... Kg7 {[%clk 0:00:04.4]} 30. Qf6+
{[%clk 0:00:08]} 1/2-1/2

[Event "*** Titled Tuesday Blitz"]
[Site "Chess.com"]
[Date "2021.02.02"]
[Round "4"]
[White "BabyBoss31"]
[Black "Yaryi_sergey"]
[Result "1-0"]
[WhiteElo "2325"]
[BlackElo "2466"]
[TimeControl "180+1"]
[EndTime "10:41:40 PST"]
[Termination "BabyBoss31 won by resignation"]

1. d4 {[%clk 0:03:00.9]} 1... Nf6 {[%clk 0:02:58.4]} 2. Bg5 {[%clk 0:03:00.7]}
2... g6 {[%clk 0:02:58.1]} 3. Bxf6 {[%clk 0:02:55.3]} 3... exf6 {[%clk
0:02:57.9]} 4. e3 {[%clk 0:02:55.8]} 4... f5 {[%clk 0:02:58.1]} 5. g3 {[%clk
0:02:56.4]} 5... Bg7 {[%clk 0:02:58.4]} 6. Bg2 {[%clk 0:02:56.7]} 6... O-O
{[%clk 0:02:59.3]} 7. Ne2 {[%clk 0:02:57]} 7... d6 {[%clk 0:02:59.7]} 8. O-O
{[%clk 0:02:57.4]} 8... c5 {[%clk 0:02:59.4]} 9. Nbc3 {[%clk 0:02:50.9]} 9...
Qb6 {[%clk 0:02:58.4]} 10. Rb1 {[%clk 0:02:45.8]} 10... Nc6 {[%clk 0:02:56.7]}
11. Nd5 {[%clk 0:02:40.8]} 11... Qa5 {[%clk 0:02:53.6]} 12. a3 {[%clk 0:02:16]}
12... Be6 {[%clk 0:02:49]} 13. b4 {[%clk 0:01:55.1]} 13... cxb4 {[%clk
0:02:46.8]} 14. axb4 {[%clk 0:01:52.6]} 14... Qd8 {[%clk 0:02:46.7]} 15. c4
{[%clk 0:01:40.1]} 15... Rc8 {[%clk 0:02:45.2]} 16. Nef4 {[%clk 0:01:25.8]}
16... Re8 {[%clk 0:02:40.8]} 17. c5 {[%clk 0:01:11.2]} 17... a6 {[%clk
0:02:32.8]} 18. Nb6 {[%clk 0:01:08.9]} 18... dxc5 {[%clk 0:02:23.5]} 19. bxc5
{[%clk 0:01:00.9]} 19... Rb8 {[%clk 0:02:07.8]} 20. d5 {[%clk 0:01:00.6]} 20...
Ne5 {[%clk 0:01:59]} 21. dxe6 {[%clk 0:00:59.4]} 21... fxe6 {[%clk 0:01:59.3]}
22. Qxd8 {[%clk 0:00:56.4]} 22... Rbxd8 {[%clk 0:01:55.6]} 23. Bxb7 {[%clk
0:00:56.4]} 23... Bf8 {[%clk 0:01:54.9]} 24. c6 {[%clk 0:00:53.2]} 24... Bd6
{[%clk 0:01:54.8]} 25. Rfd1 {[%clk 0:00:50.9]} 25... Bc7 {[%clk 0:01:55]} 26.
Nd7 {[%clk 0:00:49]} 26... a5 {[%clk 0:01:52.2]} 27. Nf6+ {[%clk 0:00:46.7]}
27... Kf7 {[%clk 0:01:51.4]} 28. Nxe8 {[%clk 0:00:46.6]} 28... Rxe8 {[%clk
0:01:52.2]} 29. Rbc1 {[%clk 0:00:40.6]} 29... g5 {[%clk 0:01:48.7]} 30. Rd7+
{[%clk 0:00:39]} 30... Re7 {[%clk 0:01:48.1]} 31. Rxe7+ {[%clk 0:00:33.5]} 31...
Kxe7 {[%clk 0:01:48.3]} 32. Ne2 {[%clk 0:00:33.8]} 32... Nd3 {[%clk 0:01:45.2]}
33. Rd1 {[%clk 0:00:31.5]} 33... Nc5 {[%clk 0:01:45.1]} 34. Nc3 {[%clk
0:00:30.8]} 34... Bb6 {[%clk 0:01:37]} 35. Nb5 {[%clk 0:00:30.3]} 35... a4
{[%clk 0:01:36.2]} 36. Ba8 {[%clk 0:00:19.7]} 36... a3 {[%clk 0:01:31.1]} 37. c7
{[%clk 0:00:19.6]} 37... Bxc7 {[%clk 0:01:29.5]} 38. Nxc7 {[%clk 0:00:20.5]}
38... Nb3 {[%clk 0:01:29.5]} 39. Nxe6 {[%clk 0:00:16.8]} 39... a2 {[%clk
0:01:28.7]} 40. Bd5 {[%clk 0:00:15.8]} 40... a1=Q {[%clk 0:01:27.3]} 41. Rxa1
{[%clk 0:00:16.3]} 41... Nxa1 {[%clk 0:01:27.4]} 42. Nxg5 {[%clk 0:00:16.7]}
42... h6 {[%clk 0:01:26.5]} 43. Nf3 {[%clk 0:00:15.1]} 43... Nc2 {[%clk
0:01:23.3]} 44. Kg2 {[%clk 0:00:14.6]} 44... Nb4 {[%clk 0:01:21.5]} 45. Bb3
{[%clk 0:00:14.6]} 45... Kf6 {[%clk 0:01:21.4]} 46. h4 {[%clk 0:00:15]} 46...
Nd3 {[%clk 0:01:19.2]} 47. Nd4 {[%clk 0:00:14.8]} 47... Ne1+ {[%clk 0:01:15.9]}
48. Kf1 {[%clk 0:00:15.4]} 48... Nd3 {[%clk 0:01:16]} 49. Bc2 {[%clk 0:00:15.9]}
49... Nb4 {[%clk 0:01:15.8]} 50. Bxf5 {[%clk 0:00:15.9]} 50... Nd5 {[%clk
0:01:15]} 51. Be4 {[%clk 0:00:16.1]} 51... Nc3 {[%clk 0:01:14.6]} 52. Bf3 {[%clk
0:00:16.7]} 52... Ke5 {[%clk 0:01:13.9]} 53. Kg2 {[%clk 0:00:17.6]} 53... Kf6
{[%clk 0:01:13.1]} 54. Nc6 {[%clk 0:00:17.4]} 54... Nb5 {[%clk 0:01:06.5]} 55.
e4 {[%clk 0:00:18.3]} 55... Nc3 {[%clk 0:01:05.6]} 56. e5+ {[%clk 0:00:18.1]}
56... Kf5 {[%clk 0:01:05.4]} 57. g4+ {[%clk 0:00:16.2]} 57... Kf4 {[%clk
0:01:05.5]} 58. e6 {[%clk 0:00:16.2]} 1-0

[Event "*** Titled Tuesday Blitz"]
[Site "Chess.com"]
[Date "2021.02.02"]
[Round "4"]
[White "ChessLover0108"]
[Black "KononenkoD"]
[Result "1-0"]
[WhiteElo "2847"]
[BlackElo "2526"]
[TimeControl "180+1"]
[EndTime "10:41:41 PST"]
[Termination "ChessLover0108 won on time"]

1. Nf3 {[%clk 0:03:00.9]} 1... c5 {[%clk 0:02:57]} 2. c4 {[%clk 0:03:00.4]} 2...
Nc6 {[%clk 0:02:56.5]} 3. Nc3 {[%clk 0:02:53.6]} 3... g6 {[%clk 0:02:56.2]} 4.
e3 {[%clk 0:02:53.7]} 4... Nf6 {[%clk 0:02:55.7]} 5. d4 {[%clk 0:02:54.5]} 5...
cxd4 {[%clk 0:02:55.5]} 6. exd4 {[%clk 0:02:55.4]} 6... d5 {[%clk 0:02:55.6]} 7.
cxd5 {[%clk 0:02:56.3]} 7... Nxd5 {[%clk 0:02:55.3]} 8. Bc4 {[%clk 0:02:55.7]}
8... Nxc3 {[%clk 0:02:55.4]} 9. Qb3 {[%clk 0:02:51.2]} 9... e6 {[%clk
0:02:55.3]} 10. bxc3 {[%clk 0:02:50.1]} 10... Bg7 {[%clk 0:02:55.5]} 11. Ba3
{[%clk 0:02:50]} 11... Bf8 {[%clk 0:02:55.6]} 12. Bc1 {[%clk 0:02:43.1]} 12...
Bg7 {[%clk 0:02:55.4]} 13. Ba3 {[%clk 0:02:37.8]} 13... Bf8 {[%clk 0:02:54.4]}
14. Bb5 {[%clk 0:02:38.3]} 14... Bd7 {[%clk 0:02:51.1]} 15. Bxf8 {[%clk
0:02:29]} 15... Kxf8 {[%clk 0:02:48.6]} 16. O-O {[%clk 0:02:29.9]} 16... Kg7
{[%clk 0:02:45]} 17. Qb2 {[%clk 0:02:29.4]} 17... a6 {[%clk 0:02:31.3]} 18. Bxc6
{[%clk 0:02:17.6]} 18... Bxc6 {[%clk 0:02:30.8]} 19. Ne5 {[%clk 0:02:18.5]}
19... Qd5 {[%clk 0:02:18.9]} 20. f3 {[%clk 0:02:14]} 20... Rhd8 {[%clk
0:02:14.4]} 21. Rfd1 {[%clk 0:02:01.6]} 21... f6 {[%clk 0:01:43.8]} 22. Nd3
{[%clk 0:01:56.6]} 22... Bb5 {[%clk 0:01:32.4]} 23. Nc5 {[%clk 0:01:51.1]} 23...
b6 {[%clk 0:01:21.4]} 24. Ne4 {[%clk 0:01:49.2]} 24... Rac8 {[%clk 0:01:19.9]}
25. a4 {[%clk 0:01:44.8]} 25... Bc4 {[%clk 0:00:38.6]} 26. Qxb6 {[%clk
0:01:42.2]} 26... f5 {[%clk 0:00:33.8]} 27. Nc5 {[%clk 0:01:38.1]} 27... Rb8
{[%clk 0:00:21.9]} 28. Qc7+ {[%clk 0:01:35.7]} 28... Kh6 {[%clk 0:00:20.3]} 29.
Re1 {[%clk 0:01:34]} 29... Rdc8 {[%clk 0:00:15.9]} 30. Qf4+ {[%clk 0:01:32.9]}
30... g5 {[%clk 0:00:15.5]} 31. Qg3 {[%clk 0:01:29.4]} 31... Rxc5 {[%clk
0:00:15.4]} 32. dxc5 {[%clk 0:01:30.1]} 32... Qxc5+ {[%clk 0:00:15.2]} 33. Kh1
{[%clk 0:01:31]} 33... Rb2 {[%clk 0:00:14.7]} 34. Rad1 {[%clk 0:01:25.5]} 34...
Bd5 {[%clk 0:00:14.2]} 35. h4 {[%clk 0:01:24.5]} 35... g4 {[%clk 0:00:14]} 36.
Qf4+ {[%clk 0:01:19.6]} 36... Kg7 {[%clk 0:00:11.7]} 37. c4 {[%clk 0:01:07.8]}
37... Qf2 {[%clk 0:00:07.2]} 38. Qd4+ {[%clk 0:01:03.1]} 38... Qxd4 {[%clk
0:00:06.5]} 39. Rxd4 {[%clk 0:01:04]} 39... Bc6 {[%clk 0:00:05.9]} 40. Rxe6
{[%clk 0:01:01.8]} 40... Bxa4 {[%clk 0:00:05.5]} 41. fxg4 {[%clk 0:00:59.8]}
41... fxg4 {[%clk 0:00:03.5]} 42. Rxg4+ {[%clk 0:01:00.7]} 42... Kf7 {[%clk
0:00:03.9]} 43. Rxa6 {[%clk 0:01:01]} 43... Bd1 {[%clk 0:00:02]} 44. Rd4 {[%clk
0:00:59.8]} 44... Ke7 {[%clk 0:00:01.7]} 45. Rxd1 {[%clk 0:00:59.7]} 1-0

[Event "*** Titled Tuesday Blitz"]
[Site "Chess.com"]
[Date "2021.02.02"]
[Round "4"]
[White "fridaywins"]
[Black "Noam_Vitenberg"]
[Result "0-1"]
[WhiteElo "2160"]
[BlackElo "2507"]
[TimeControl "180+1"]
[EndTime "10:41:42 PST"]
[Termination "Noam_Vitenberg won by resignation"]

1. e4 {[%clk 0:03:00.9]} 1... d5 {[%clk 0:02:14.1]} 2. Nc3 {[%clk 0:02:57.7]}
2... d4 {[%clk 0:02:11.2]} 3. Nce2 {[%clk 0:02:57.6]} 3... e5 {[%clk 0:02:11.5]}
4. Ng3 {[%clk 0:02:54.7]} 4... Be6 {[%clk 0:02:05.1]} 5. c3 {[%clk 0:02:46.1]}
5... c5 {[%clk 0:01:54.5]} 6. Bb5+ {[%clk 0:02:44.5]} 6... Nd7 {[%clk 0:01:55]}
7. d3 {[%clk 0:02:27.1]} 7... g6 {[%clk 0:01:54.5]} 8. c4 {[%clk 0:02:22.9]}
8... Bg7 {[%clk 0:01:53.5]} 9. f4 {[%clk 0:02:18.5]} 9... a6 {[%clk 0:01:38.6]}
10. Ba4 {[%clk 0:02:11]} 10... b5 {[%clk 0:01:38.7]} 11. f5 {[%clk 0:01:55.8]}
11... Bxf5 {[%clk 0:01:08.6]} 12. exf5 {[%clk 0:01:53.1]} 12... bxa4 {[%clk
0:01:08.6]} 13. Qxa4 {[%clk 0:01:48.6]} 13... Ne7 {[%clk 0:01:07.6]} 14. f6
{[%clk 0:01:35]} 14... Bxf6 {[%clk 0:01:05.6]} 15. Ne4 {[%clk 0:01:32]} 15...
Nf5 {[%clk 0:00:53.2]} 16. Nf3 {[%clk 0:01:09.6]} 16... Bg7 {[%clk 0:00:28.3]}
17. Nxc5 {[%clk 0:00:43.6]} 17... Rc8 {[%clk 0:00:28.1]} 18. Bg5 {[%clk
0:00:34.4]} 18... f6 {[%clk 0:00:23.5]} 19. Ne6 {[%clk 0:00:33.9]} 19... Qe7
{[%clk 0:00:23.6]} 20. Nxg7+ {[%clk 0:00:34]} 20... Qxg7 {[%clk 0:00:24]} 21.
Bd2 {[%clk 0:00:29.3]} 21... O-O {[%clk 0:00:24]} 22. O-O {[%clk 0:00:28.5]}
22... Nc5 {[%clk 0:00:17.3]} 23. Qa3 {[%clk 0:00:27.6]} 23... e4 {[%clk
0:00:14.3]} 24. dxe4 {[%clk 0:00:20.4]} 24... Nxe4 {[%clk 0:00:15.2]} 25. b3
{[%clk 0:00:20.3]} 25... Rfe8 {[%clk 0:00:13.7]} 26. Bf4 {[%clk 0:00:19.4]}
26... Qa7 {[%clk 0:00:12.9]} 27. Kh1 {[%clk 0:00:18.5]} 27... d3 {[%clk
0:00:13.1]} 28. h3 {[%clk 0:00:16.9]} 28... Nfg3+ {[%clk 0:00:12]} 29. Bxg3
{[%clk 0:00:16.5]} 29... Nxg3+ {[%clk 0:00:12.9]} 30. Kh2 {[%clk 0:00:17.4]}
30... Nxf1+ {[%clk 0:00:12.6]} 31. Rxf1 {[%clk 0:00:18.3]} 31... Qc7+ {[%clk
0:00:13.1]} 32. Kg1 {[%clk 0:00:16.5]} 32... Qb6+ {[%clk 0:00:12.9]} 33. Kh2
{[%clk 0:00:14.6]} 33... Re2 {[%clk 0:00:12.4]} 34. Qe7 {[%clk 0:00:12.4]} 34...
Rxe7 {[%clk 0:00:11.7]} 0-1

[Event "*** Titled Tuesday Blitz"]
[Site "Chess.com"]
[Date "2021.02.02"]
[Round "4"]
[White "fabianvivasz"]
[Black "Logman74"]
[Result "1-0"]
[WhiteElo "2305"]
[BlackElo "2446"]
[TimeControl "180+1"]
[EndTime "10:41:42 PST"]
[Termination "fabianvivasz won on time"]

1. e4 {[%clk 0:03:00.9]} 1... c5 {[%clk 0:02:59.4]} 2. Nc3 {[%clk 0:02:57.4]}
2... d6 {[%clk 0:02:50.5]} 3. d4 {[%clk 0:02:56.3]} 3... cxd4 {[%clk 0:02:50.8]}
4. Qxd4 {[%clk 0:02:57.2]} 4... Nf6 {[%clk 0:02:50.9]} 5. b3 {[%clk 0:02:47.6]}
5... Nc6 {[%clk 0:02:50.2]} 6. Qd2 {[%clk 0:02:47]} 6... Be6 {[%clk 0:02:44.5]}
7. Bb2 {[%clk 0:02:09.7]} 7... g6 {[%clk 0:02:43.5]} 8. O-O-O {[%clk 0:01:19.4]}
8... Bg7 {[%clk 0:02:37.4]} 9. f3 {[%clk 0:01:16.9]} 9... O-O {[%clk 0:02:36.3]}
10. h4 {[%clk 0:01:06.8]} 10... h5 {[%clk 0:02:34.6]} 11. Nh3 {[%clk 0:00:47.6]}
11... Rc8 {[%clk 0:02:25.7]} 12. Ng5 {[%clk 0:00:44.6]} 12... Ne5 {[%clk
0:02:22.8]} 13. Kb1 {[%clk 0:00:37.4]} 13... a6 {[%clk 0:02:12.8]} 14. g4 {[%clk
0:00:33.8]} 14... Nxf3 {[%clk 0:02:10.2]} 15. Nxf3 {[%clk 0:00:32.8]} 15... Bxg4
{[%clk 0:02:07.3]} 16. Be2 {[%clk 0:00:30.9]} 16... b5 {[%clk 0:02:00.3]} 17.
Ng5 {[%clk 0:00:25.4]} 17... b4 {[%clk 0:01:56.1]} 18. Nd5 {[%clk 0:00:24]}
18... Nxd5 {[%clk 0:01:50.6]} 19. Bxg7 {[%clk 0:00:24.9]} 19... Nc3+ {[%clk
0:01:46.7]} 20. Bxc3 {[%clk 0:00:23.7]} 20... bxc3 {[%clk 0:01:47.2]} 21. Qe3
{[%clk 0:00:16.8]} 21... Bxe2 {[%clk 0:01:38.1]} 22. Qxe2 {[%clk 0:00:17.7]}
22... Qa5 {[%clk 0:01:37.7]} 23. Qe3 {[%clk 0:00:18]} 23... Rc5 {[%clk
0:01:28.8]} 24. Rhg1 {[%clk 0:00:12.9]} 24... Rb8 {[%clk 0:01:24.2]} 25. Qf4
{[%clk 0:00:11.2]} 25... Rf8 {[%clk 0:00:47.6]} 26. Ne6 {[%clk 0:00:10.9]} 26...
Qa3 {[%clk 0:00:43]} 27. Rxg6+ {[%clk 0:00:10.3]} 1-0

[Event "*** Titled Tuesday Blitz"]
[Site "Chess.com"]
[Date "2021.02.02"]
[Round "4"]
[White "Politov_Pavel"]
[Black "fish7728"]
[Result "1-0"]
[WhiteElo "2404"]
[BlackElo "2153"]
[TimeControl "180+1"]
[EndTime "10:41:44 PST"]
[Termination "Politov_Pavel won by resignation"]

1. e4 {[%clk 0:02:00.5]} 1... c5 {[%clk 0:02:58.7]} 2. Nf3 {[%clk 0:01:58.4]}
2... e6 {[%clk 0:02:59]} 3. c3 {[%clk 0:01:57.9]} 3... Nf6 {[%clk 0:02:58]} 4.
e5 {[%clk 0:01:57.9]} 4... Nd5 {[%clk 0:02:58]} 5. d4 {[%clk 0:01:58.8]} 5... d6
{[%clk 0:02:57.1]} 6. Bd3 {[%clk 0:01:54.1]} 6... Nc6 {[%clk 0:02:56.7]} 7. exd6
{[%clk 0:01:54]} 7... Qxd6 {[%clk 0:02:51.9]} 8. O-O {[%clk 0:01:54.6]} 8... Be7
{[%clk 0:02:51.7]} 9. Nbd2 {[%clk 0:01:54.4]} 9... cxd4 {[%clk 0:02:44.7]} 10.
Nc4 {[%clk 0:01:54.1]} 10... Qd8 {[%clk 0:02:38.6]} 11. cxd4 {[%clk 0:01:54.3]}
11... O-O {[%clk 0:02:37.7]} 12. a3 {[%clk 0:01:54.5]} 12... a6 {[%clk
0:02:25.9]} 13. Re1 {[%clk 0:01:53.6]} 13... b5 {[%clk 0:02:24.8]} 14. Nce5
{[%clk 0:01:53.7]} 14... Nxe5 {[%clk 0:02:24.4]} 15. Nxe5 {[%clk 0:01:54.6]}
15... Bb7 {[%clk 0:02:24.4]} 16. Qh5 {[%clk 0:01:53.9]} 16... g6 {[%clk
0:02:19.5]} 17. Qh6 {[%clk 0:01:52.1]} 17... Bf6 {[%clk 0:02:15.2]} 18. Bd2
{[%clk 0:01:42.1]} 18... Bg7 {[%clk 0:02:15.1]} 19. Qh3 {[%clk 0:01:42.2]} 19...
Ne7 {[%clk 0:02:08.3]} 20. Bb4 {[%clk 0:01:29.5]} 20... Re8 {[%clk 0:02:02]} 21.
Nxf7 {[%clk 0:01:26.5]} 21... Kxf7 {[%clk 0:02:00.6]} 22. Qxe6+ {[%clk
0:01:26.5]} 22... Kf8 {[%clk 0:01:59.5]} 23. Be4 {[%clk 0:01:18.3]} 23... Bc8
{[%clk 0:01:44.2]} 24. Qc6 {[%clk 0:00:59.4]} 24... Ra7 {[%clk 0:01:39.6]} 25.
Rac1 {[%clk 0:00:41.1]} 25... Kg8 {[%clk 0:01:36.5]} 26. Bd5+ {[%clk 0:00:35.6]}
26... Kh8 {[%clk 0:01:27.3]} 27. Qc5 {[%clk 0:00:20.6]} 27... Rd7 {[%clk
0:00:54.6]} 28. Bf7 {[%clk 0:00:19]} 28... Rf8 {[%clk 0:00:36.2]} 29. Be6 {[%clk
0:00:19.2]} 29... Nf5 {[%clk 0:00:32.3]} 30. Bxd7 {[%clk 0:00:16.2]} 30... Bxd7
{[%clk 0:00:33.2]} 31. d5 {[%clk 0:00:16]} 31... Bd4 {[%clk 0:00:31.4]} 32. Qc7
{[%clk 0:00:14.6]} 32... Bc8 {[%clk 0:00:29.5]} 33. Bxf8 {[%clk 0:00:13.8]}
33... Qxf8 {[%clk 0:00:29.1]} 34. Qxc8 {[%clk 0:00:13.7]} 34... Qxc8 {[%clk
0:00:29]} 35. Rxc8+ {[%clk 0:00:14.6]} 35... Kg7 {[%clk 0:00:29.3]} 36. g4
{[%clk 0:00:13.5]} 36... Nd6 {[%clk 0:00:28.2]} 37. Rc7+ {[%clk 0:00:14]} 37...
Kf6 {[%clk 0:00:27.5]} 38. Rc6 {[%clk 0:00:14.9]} 38... Be5 {[%clk 0:00:25.8]}
39. Rxd6+ {[%clk 0:00:15.4]} 39... Bxd6 {[%clk 0:00:25.8]} 40. Re6+ {[%clk
0:00:16.3]} 40... Kg5 {[%clk 0:00:26.4]} 41. Rxd6 {[%clk 0:00:17.2]} 41... Kxg4
{[%clk 0:00:26.7]} 42. Rxa6 {[%clk 0:00:16.5]} 1-0